bitfinex/quotes_SOLUSD_20250403
["timestamp","ask_amount","ask_price","bid_price","bid_amount"]
[1743638402893,51.03412391,117.36,117.31,0.42648471]
[1743638403098,51.03412391,117.36,117.33,0.14216157]
[1743638404489,51.03412391,117.36,117.31,0.42648471]
[1743638404868,51.03412391,117.36,117.31,0.14216157]
[1743638405095,51.03412391,117.36,117.29,9.12164036]
[1743638405280,51.03412391,117.36,117.29,0.03]
[1743638405478,17.2461,117.35,117.26,30.0]
[1743638405677,6.9861,117.33,117.19,6.0020562]
[1743638405881,7.434,117.3,117.15,332.22]
[1743638406074,0.42648471,117.28,117.15,332.22]
[1743638406406,0.28432314,117.26,117.15,332.22]
[1743638406703,6.9058,117.23,117.18,27.2987]
[1743638407002,228.3,117.22,117.18,12.4159]
[1743638407175,8.5324,117.2,117.18,11.3099]
[1743638407375,82.1,117.19,117.18,11.3099]
[1743638407578,8.5324,117.2,117.18,11.3099]
[1743638407795,0.42648471,117.19,117.18,11.3099]
[1743638408000,8.5319,117.21,117.18,11.3099]
[1743638408177,0.42648471,117.19,117.18,11.3099]
[1743638408376,0.28432314,117.24,117.18,11.3099]
[1743638408601,0.42648471,117.24,117.18,11.3099]
[1743638408806,8.5281,117.26,117.14,0.18149351]
[1743638408995,0.28432314,117.25,117.16,30.08160592]
[1743638409708,10.39347352,117.28,117.16,30.08160592]
[1743638409882,20.0,117.33,117.17,32.17211517]
[1743638410081,20.0,117.28,117.17,30.0]
[1743638410279,10.6,117.28,117.17,30.0]
[1743638410685,25.53,117.25,117.17,30.0]
[1743638410992,30.6,117.28,117.17,30.0]
[1743638411179,20.0,117.3,117.14,0.18149351]
[1743638411379,13.19801087,117.35,117.14,91.74004714]
[1743638411581,82.1,117.31,117.15,9.65855363]
[1743638411786,82.1,117.31,117.17,0.5]
[1743638411980,82.1,117.31,117.18,20.27855363]
[1743638412195,82.1,117.35,117.19,332.48]
[1743638412401,51.03412391,117.36,117.2,9.65855363]
[1743638412593,51.03412391,117.36,117.23,0.5]
[1743638412807,51.03412391,117.36,117.26,7.3074]
[1743638412981,51.03412391,117.36,117.27,9.65855363]
[1743638413283,51.03412391,117.36,117.28,10.62]
[1743638413594,51.03412391,117.36,117.28,20.27855363]
[1743638414388,46.77396547,117.36,117.3,6.57325401]
[1743638414587,0.063,117.48,117.35,6.8334]
[1743638414786,0.063,117.48,117.37,0.5]
[1743638414997,0.063,117.48,117.38,342.57188697]
[1743638415397,0.063,117.48,117.39,10.74]
[1743638415605,0.063,117.48,117.45,2.94784418]
[1743638416304,218.063,117.48,117.45,2.94784418]
[1743638416989,218.0,117.47,117.45,2.94784418]
[1743638417514,0.063,117.48,117.39,2.12801188]
[1743638418989,0.063,117.48,117.38,10.72]
[1743638419192,0.063,117.48,117.36,10.09188697]
[1743638419512,0.563,117.48,117.3,92.02188697]
[1743638419814,0.28432314,117.46,117.32,0.14216157]
[1743638420007,218.5,117.45,117.32,0.14216157]
[1743638420316,218.0,117.44,117.32,0.14216157]
[1743638420612,92.84,117.43,117.31,10.7]
[1743638420813,0.42648471,117.42,117.31,10.7]
[1743638421115,0.28432314,117.4,117.3,0.03]
[1743638421316,218.0,117.41,117.3,0.03]
[1743638421488,0.28432314,117.38,117.3,0.03]
[1743638421684,0.28432314,117.36,117.3,0.03]
[1743638421887,0.28432314,117.34,117.3,0.03]
[1743638422104,218.0,117.33,117.3,0.03]
[1743638424408,0.42648471,117.31,117.18,0.03]
[1743638424718,0.28432314,117.29,117.18,0.03]
[1743638425092,218.0,117.3,117.18,0.17216157]
[1743638425297,0.28432314,117.29,117.18,0.03]
[1743638425497,0.28432314,117.27,117.18,0.03]
[1743638425721,218.0,117.26,117.18,0.03]
[1743638426106,218.0,117.25,117.18,0.03]
[1743638426299,218.0,117.24,117.18,0.03]
[1743638426501,82.1,117.23,117.18,0.03]
[1743638429411,81.6148,117.29,117.18,0.31432314]
[1743638429714,81.6148,117.29,117.19,0.14216157]
[1743638429913,81.6148,117.29,117.21,0.14216157]
[1743638430302,81.6148,117.32,117.21,100.97613357]
[1743638430710,81.6148,117.32,117.21,110.56246498]
[1743638431816,81.6148,117.35,117.23,19.07613357]
[1743638432021,81.6148,117.35,117.23,110.56246498]
[1743638433332,81.6148,117.35,117.27,0.14216157]
[1743638433500,81.6148,117.4,117.29,0.14216157]
[1743638433702,81.6148,117.39,117.29,0.14216157]
[1743638437421,81.6148,117.38,117.24,91.48633141]
[1743638437725,81.6148,117.37,117.28,10.38]
[1743638437915,81.6148,117.36,117.28,10.38]
[1743638438103,81.6148,117.36,117.28,10.36]
[1743638439026,81.6148,117.39,117.29,0.42648471]
[1743638439227,81.6148,117.39,117.29,19.07613357]
[1743638440174,81.6148,117.39,117.29,18.79181043]
[1743638440633,81.6148,117.38,117.26,0.14216157]
[1743638440846,81.6148,117.38,117.3,10.32]
[1743638441834,81.6148,117.38,117.31,19.07613357]
[1743638442333,8.5164,117.42,117.31,19.07613357]
[1743638442334,81.6148,117.42,117.31,19.07613357]
[1743638442711,0.063,117.39,117.33,19.57613357]
[1743638442917,0.063,117.39,117.36,0.42648471]
[1743638443107,0.063,117.39,117.38,19.07613357]
[1743638443311,0.063,117.48,117.42,0.42648471]
[1743638443613,0.063,117.49,117.43,10.28]
[1743638443812,0.063,117.49,117.44,19.07613357]
[1743638444012,0.063,117.49,117.43,10.28]
[1743638445543,227.7548,117.48,117.31,88.29961425]
[1743638445750,18.933972,117.46,117.32,21.6258]
[1743638445915,217.5148,117.45,117.34,0.14216157]
[1743638446242,81.6148,117.44,117.34,18.79181043]
[1743638446447,81.6148,117.44,117.36,26.0]
[1743638446740,81.6148,117.44,117.37,0.14216157]
[1743638447040,81.6148,117.47,117.37,10.40216157]
[1743638447242,81.6148,117.47,117.39,0.14216157]
[1743638447620,81.6148,117.47,117.38,0.14216157]
[1743638448245,81.6148,117.47,117.32,7.5746]
[1743638448246,228.3148,117.46,117.32,7.5746]
[1743638448419,81.6148,117.45,117.28,10.3]
[1743638448620,10.3,117.44,117.34,0.14216157]
[1743638449019,10.3,117.44,117.34,19.07613357]
[1743638449236,10.3,117.44,117.34,0.14216157]
[1743638449420,10.3,117.44,117.33,10.3]
[1743638449954,217.79912314,117.43,117.33,26.0]
[1743638450245,226.0314,117.42,117.33,26.0]
[1743638450416,217.5148,117.42,117.33,26.0]
[1743638450829,81.6148,117.41,117.33,26.0]
[1743638452552,81.6148,117.41,117.34,0.14216157]
[1743638453251,81.6148,117.41,117.33,0.14216157]
[1743638453449,81.6148,117.41,117.31,10.24]
[1743638453651,81.6148,117.4,117.31,0.14216157]
[1743638453954,81.6148,117.39,117.31,0.14216157]
[1743638454828,81.6148,117.39,117.33,0.03]
[1743638456237,18.64964886,117.37,117.33,0.03]
[1743638456423,217.5148,117.36,117.33,0.03]
[1743638457046,81.6148,117.36,117.33,0.03]
[1743638457337,81.6148,117.36,117.28,26.14216157]
[1743638460926,81.6148,117.36,117.3,0.14216157]
[1743638461542,135.9,117.4,117.3,0.14216157]
[1743638461745,81.6148,117.39,117.3,0.14216157]
[1743638462329,81.6148,117.39,117.32,26.0]
[1743638462551,81.6148,117.39,117.33,0.14216157]
[1743638463341,135.9,117.43,117.33,0.14216157]
[1743638463540,81.6148,117.42,117.33,19.07613357]
[1743638463743,81.6148,117.42,117.34,10.0]
[1743638465226,81.6148,117.42,117.35,0.14216157]
[1743638465627,217.5148,117.41,117.31,7.5599]
[1743638465849,18.64964886,117.4,117.3,9.94]
[1743638466051,18.933972,117.38,117.26,8.2436]
[1743638466252,0.42648471,117.35,117.23,0.03]
[1743638466430,18.64964886,117.33,117.24,26.0]
[1743638466631,81.6148,117.32,117.24,26.0]
[1743638467151,81.6148,117.34,117.25,0.14216157]
[1743638467449,81.6148,117.34,117.26,26.0]
[1743638467651,81.6148,117.33,117.26,26.0]
[1743638467836,81.6148,117.33,117.27,9.96]
[1743638468435,81.6148,117.32,117.24,0.03]
[1743638468646,81.6148,117.31,117.24,0.03]
[1743638468845,81.6148,117.3,117.24,0.03]
[1743638469152,81.6148,117.29,117.24,0.03]
[1743638469345,81.6148,117.28,117.24,0.03]
[1743638470047,300.0,117.32,117.24,0.03]
[1743638470258,300.0,117.32,117.25,9.92]
[1743638471352,81.6148,117.31,117.25,9.92]
[1743638471544,217.5148,117.3,117.24,0.03]
[1743638473060,0.28432314,117.28,117.24,0.03]
[1743638473365,18.64964886,117.26,117.24,0.03]
[1743638473574,28.56964886,117.26,117.24,0.03]
[1743638474157,18.64964886,117.24,117.21,0.03]
[1743638474357,81.6148,117.23,117.21,0.03]
[1743638475454,83.74788839,117.25,117.21,0.03]
[1743638476056,81.6148,117.25,117.21,0.03]
[1743638480281,81.6778,117.25,117.21,0.03]
[1743638480856,81.6148,117.27,117.21,0.03]
[1743638481178,81.6148,117.3,117.21,0.17216157]
[1743638481566,81.6148,117.3,117.23,0.14216157]
[1743638482177,91.3748,117.29,117.21,0.03]
[1743638483082,18.64964886,117.28,117.21,0.03]
[1743638483283,0.28432314,117.27,117.21,0.03]
[1743638483475,81.6148,117.26,117.21,0.03]
[1743638483873,81.6148,117.26,117.21,26.03]
[1743638484884,81.6148,117.31,117.22,351.67613357]
[1743638486371,81.6148,117.31,117.22,19.07613357]
[1743638486580,81.6148,117.31,117.24,0.14216157]
[1743638486877,81.6148,117.31,117.23,9.88]
[1743638487463,81.6148,117.31,117.22,10.02216157]
[1743638488473,90.1396,117.31,117.22,9.88]
[1743638488676,90.1396,117.31,117.21,0.03]
[1743638488861,100.26444886,117.3,117.21,0.03]
[1743638489765,90.1404,117.3,117.21,0.03]
[1743638490362,0.14216157,117.28,117.21,0.03]
[1743638490667,18.64964886,117.26,117.21,0.03]
[1743638491986,8.528,117.26,117.21,0.03]
[1743638492174,99.9623,117.27,117.21,0.03]
[1743638492485,91.4348,117.27,117.21,0.03]
[1743638492712,81.6148,117.27,117.21,0.03]
[1743638495588,81.6148,117.27,117.21,0.45648471]
[1743638496166,517.5148,117.32,117.23,0.42648471]
[1743638496505,300.0,117.32,117.23,0.42648471]
[1743638498685,300.0,117.32,117.25,26.0]
[1743638498898,300.0,117.32,117.25,35.7]
[1743638499705,300.0,117.32,117.23,0.42648471]
[1743638499891,81.6148,117.31,117.21,0.03]
[1743638500095,18.64964886,117.3,117.21,0.03]
[1743638500398,81.6148,117.29,117.21,0.03]
[1743638501405,81.6148,117.29,117.22,26.0]
[1743638501613,2.13221922,117.28,117.23,9.66]
[1743638502405,2.13221922,117.28,117.21,0.03]
[1743638502594,99.781,117.29,117.21,0.03]
[1743638502790,91.2548,117.29,117.21,0.03]
[1743638502992,81.6148,117.28,117.21,0.03]
[1743638504108,90.1414,117.28,117.21,0.03]
[1743638504304,81.6148,117.27,117.21,0.03]
[1743638505507,5.54539929,117.26,117.21,0.03]
[1743638505710,81.6148,117.25,117.21,0.03]
[1743638506499,81.6148,117.24,117.21,0.03]
[1743638507890,81.6148,117.24,117.18,0.03]
[1743638508117,81.6148,117.23,117.18,0.03]
[1743638510918,2.13293405,117.22,117.18,30.03]
[1743638511705,2.13293405,117.22,117.19,9.64216157]
[1743638512001,2.13293405,117.22,117.19,9.5]
[1743638512199,18.64964886,117.27,117.19,9.5]
[1743638512530,81.6148,117.26,117.18,30.03]
[1743638513527,5.54552778,117.25,117.18,30.03]
[1743638514821,5.54552778,117.24,117.18,30.03]
[1743638516220,0.063,117.24,117.18,30.03]
[1743638516416,91.0948,117.23,117.18,30.03]
[1743638516618,81.6148,117.22,117.18,30.03]
[1743638517415,81.6148,117.21,117.18,0.03]
[1743638517598,81.6148,117.2,117.18,0.03]
[1743638517799,81.6148,117.19,117.18,0.03]
[1743638518118,18.64964886,117.15,117.11,30.0]
[1743638518300,82.1,117.14,117.11,30.0]
[1743638518695,91.58,117.14,117.11,30.0]
[1743638519125,97.12762224,117.14,117.11,30.0]
[1743638519302,97.12762224,117.14,117.1,30.0]
[1743638519503,97.12762224,117.14,117.05,0.39102521]
[1743638519709,112.1,117.13,117.05,0.24886364]
[1743638520233,82.1,117.13,117.07,0.14216157]
[1743638520726,82.1,117.17,117.07,0.14216157]
[1743638520929,135.9,117.2,117.1,0.42648471]
[1743638521107,82.1,117.17,117.09,183.43367207]
[1743638521708,82.1,117.16,117.09,183.43367207]
[1743638521904,84.23438773,117.16,117.09,173.95367207]
[1743638522231,8.536,117.15,117.09,173.95367207]
[1743638522620,92.76978773,117.16,117.09,173.95367207]
[1743638523333,2.13438773,117.15,117.09,173.95367207]
[1743638524311,2.13438773,117.15,117.1,8.44508471]
[1743638524511,2.13438773,117.15,117.12,0.42648471]
[1743638524726,82.1,117.2,117.12,0.42648471]
[1743638525031,227.48,117.19,117.1,12.0708]
[1743638525333,227.48,117.19,117.1,8.0186]
[1743638525706,236.0137,117.19,117.1,8.0186]
[1743638526721,236.0132,117.19,117.1,8.0186]
[1743638527033,82.1,117.18,117.1,8.0186]
[1743638527214,236.64964886,117.17,117.09,173.95367207]
[1743638527412,82.1,117.16,117.09,173.95367207]
[1743638528246,90.6354,117.16,117.09,173.95367207]
[1743638528612,82.1,117.15,117.09,173.95367207]
[1743638528812,18.64964886,117.13,117.09,173.95367207]
[1743638529139,82.1,117.12,117.09,173.95367207]
[1743638532526,82.1,117.11,117.09,173.95367207]
[1743638533230,82.1,117.1,117.09,173.95367207]
[1743638536535,91.58,117.14,117.09,173.95367207]
[1743638536723,82.1,117.13,117.09,173.95367207]
[1743638537836,82.1,117.12,117.09,173.95367207]
[1743638542041,82.1,117.12,117.09,143.26869876]
[1743638542248,0.063,117.14,117.09,143.26869876]
[1743638543153,0.063,117.14,117.1,0.42648471]
[1743638543330,0.063,117.14,117.11,17.0236]
[1743638544625,0.0001,117.14,117.12,0.42648471]
[1743638544950,0.0001,117.14,117.11,17.0236]
[1743638546020,0.0001,117.14,117.11,7.5436]
[1743638546226,0.0001,117.14,117.09,143.23869876]
[1743638546549,82.1001,117.14,117.09,143.23869876]
[1743638549527,0.0001,117.14,117.09,143.23869876]
[1743638549729,0.0001,117.14,117.1,0.42648471]
[1743638552456,0.0001,117.14,117.1,19.07613357]
[1743638553250,283.4199,117.12,117.1,19.07613357]
[1743638553451,270.9837,117.12,117.1,19.07613357]
[1743638553657,237.33330888,117.12,117.1,19.07613357]
[1743638554133,99.43819486,117.12,117.1,101.47613357]
[1743638554333,45.31119486,117.12,117.11,19.57613357]
[1743638554568,45.31119486,117.12,117.11,26.39092656]
[1743638554746,0.063,117.24,117.18,0.14216157]
[1743638554938,0.063,117.24,117.21,0.14216157]
[1743638555456,0.063,117.24,117.21,0.42648471]
[1743638555633,0.063,117.24,117.21,0.14216157]
[1743638555833,0.063,117.24,117.19,9.48]
[1743638556640,0.063,117.24,117.2,0.14216157]
[1743638556835,0.063,117.24,117.19,9.48]
[1743638557243,221.7401,117.23,117.1,0.03]
[1743638557440,18.64964886,117.21,117.1,0.03]
[1743638557664,18.64964886,117.19,117.1,30.03]
[1743638557852,82.1,117.18,117.1,30.03]
[1743638558041,91.58,117.17,117.1,30.03]
[1743638558646,91.58,117.17,117.1,0.17216157]
[1743638558864,91.58,117.17,117.1,0.03]
[1743638559044,4.0134,117.15,117.09,142.76869876]
[1743638559642,82.1,117.19,117.13,0.14216157]
[1743638559833,4.0078,117.2,117.13,0.14216157]
[1743638560051,4.0078,117.2,117.11,332.82]
[1743638560440,82.0,117.19,117.11,332.82]
[1743638561142,82.0,117.19,117.12,0.14216157]
[1743638562056,18.64964886,117.17,117.09,142.76869876]
[1743638562247,18.64964886,117.15,117.09,142.76869876]
[1743638562955,82.0,117.16,117.09,142.76869876]
[1743638563632,91.48,117.16,117.09,142.76869876]
[1743638563959,82.0,117.16,117.09,142.76869876]
[1743638564857,82.0,117.16,117.1,0.14216157]
[1743638565157,82.0,117.16,117.09,142.76869876]
[1743638567557,82.0,117.16,117.09,142.79869876]
[1743638567864,82.063,117.16,117.09,142.79869876]
[1743638569063,82.063,117.16,117.1,0.14216157]
[1743638569447,0.063,117.16,117.1,9.90648471]
[1743638571762,8.743,117.14,117.09,142.79869876]
[1743638572950,4.1455,117.15,117.1,0.42648471]
[1743638573949,4.1455,117.15,117.1,0.28432314]
[1743638574152,4.1455,117.15,117.1,0.42648471]
[1743638574656,0.063,117.16,117.1,0.42648471]
[1743638575863,0.063,117.16,117.13,0.14216157]
[1743638576083,0.063,117.16,117.15,0.14216157]
[1743638576255,0.063,117.16,117.14,9.52]
[1743638576256,0.063,117.16,117.04,0.5]
[1743638576565,8.8324,117.15,117.08,0.14216157]
[1743638576980,90.8324,117.15,117.06,9.72]
[1743638577182,18.64964886,117.14,117.06,9.72]
[1743638577468,3.736,117.13,117.06,9.72]
[1743638578046,82.0,117.12,117.05,10.11102521]
[1743638578262,3.736,117.13,117.05,10.39534835]
[1743638578470,3.736,117.13,117.05,10.11102521]
[1743638582753,90.8324,117.15,117.05,10.11102521]
[1743638582973,90.8324,117.15,117.08,0.14216157]
[1743638584044,218.18432314,117.14,117.05,0.24886364]
[1743638584246,18.64964886,117.12,117.05,0.24886364]
[1743638584475,217.9,117.13,117.05,0.24886364]
[1743638584764,26.9686,117.15,117.07,0.14216157]
[1743638584765,8.8324,117.15,117.07,0.14216157]
[1743638584969,0.063,117.16,117.1,0.28432314]
[1743638585167,0.063,117.16,117.1,0.42648471]
[1743638585369,0.063,117.16,117.1,0.14216157]
[1743638586152,0.063,117.16,117.1,10.02216157]
[1743638586856,0.063,117.16,117.1,9.88]
[1743638587487,18.64964886,117.15,117.09,142.79869876]
[1743638588151,82.063,117.16,117.09,142.79869876]
[1743638588657,90.5985,117.16,117.09,142.79869876]
[1743638588864,18.64964886,117.15,117.09,142.79869876]
[1743638589054,82.063,117.16,117.09,142.79869876]
[1743638590868,82.063,117.16,117.1,0.14216157]
[1743638591061,0.063,117.16,117.1,0.42648471]
[1743638591281,82.0,117.15,117.09,142.79869876]
[1743638591455,18.64964886,117.12,117.09,142.79869876]
[1743638591651,82.0,117.11,117.09,142.79869876]
[1743638592261,90.539,117.11,117.09,142.79869876]
[1743638592852,82.0,117.11,117.09,142.79869876]
[1743638593351,90.5392,117.11,117.09,142.79869876]
[1743638594287,82.0,117.1,117.09,142.79869876]
[1743638597071,109.18934886,117.1,117.09,142.79869876]
[1743638597382,0.5,117.09,117.05,0.24886364]
[1743638597591,72.13,117.03,117.0,0.34479602]
[1743638597772,26.0,116.95,116.89,4.4174]
[1743638597962,18.64964886,116.93,116.86,21.85807082]
[1743638598163,26.0,116.9,116.86,13.30097082]
[1743638598371,26.0,116.9,116.85,79.1222298]
[1743638598372,53.20614886,116.87,116.85,79.1222298]
[1743638598566,144.4554,116.89,116.85,78.1222298]
[1743638598865,18.64964886,116.92,116.85,86.6800298]
[1743638599088,18.64964886,116.91,116.85,78.1222298]
[1743638599381,18.64964886,116.91,116.84,8.5585]
[1743638599382,20.0,116.83,116.8,79.12123521]
[1743638599568,135.9,116.82,116.8,79.12123521]
[1743638599973,135.9,116.84,116.8,79.12123521]
[1743638600177,178.55501504,116.87,116.8,8.5615]
[1743638600488,20.0,116.81,116.74,8.566]
[1743638600666,166.3,116.8,116.73,3.39722662]
[1743638600869,10.4,116.79,116.73,3.39722662]
[1743638601065,155.9,116.78,116.73,3.39722662]
[1743638601277,135.9,116.77,116.73,3.39722662]
[1743638601680,46.0,116.74,116.73,3.39722662]
[1743638601985,20.0,116.72,116.58,8.5778]
[1743638602180,135.9,116.72,116.58,8.5778]
[1743638602360,42.84951499,116.69,116.58,30.0223]
[1743638602560,42.19110754,116.67,116.58,30.0223]
[1743638602764,42.89918112,116.65,116.58,30.0223]
[1743638602985,42.89918112,116.65,116.58,10.5]
[1743638603165,178.03709324,116.7,116.57,8.0829]
[1743638603368,42.74863532,116.68,116.61,0.03]
[1743638603585,42.83373802,116.63,116.61,0.03]
[1743638603887,17.48265591,116.62,116.54,328.84386963]
[1743638604071,15.92375591,116.62,116.54,251.9339272]
[1743638604271,12.80595591,116.62,116.57,0.5]
[1743638604592,12.80595591,116.62,116.59,0.5]
[1743638604796,23.50357493,116.64,116.6,0.5]
[1743638604992,42.32238537,116.73,116.63,0.5]
[1743638605308,218.0,116.77,116.67,26.0]
[1743638605585,218.0,116.76,116.64,274.86976805]
[1743638605768,82.1,116.76,116.64,274.86976805]
[1743638605973,82.1,116.76,116.65,10.5]
[1743638606174,238.0,116.75,116.64,264.34976805]
[1743638606386,248.786322,116.75,116.64,264.34976805]
[1743638606585,20.0,116.72,116.64,264.34976805]
[1743638606778,218.0,116.71,116.57,333.62]
[1743638606981,218.0,116.7,116.58,10.5]
[1743638607186,218.0,116.69,116.58,10.5]
[1743638609197,18.64964886,116.67,116.58,10.5]
[1743638609371,18.64964886,116.65,116.57,333.62]
[1743638609996,218.0,116.66,116.57,333.62]
[1743638610189,18.64964886,116.65,116.57,333.62]
[1743638610691,218.0,116.66,116.57,333.62]
[1743638611099,82.1,116.66,116.58,0.14216157]
[1743638611274,82.1,116.66,116.6,26.0]
[1743638611475,82.1,116.66,116.61,10.44]
[1743638611689,82.1,116.69,116.62,0.14216157]
[1743638612078,135.9,116.72,116.65,0.14216157]
[1743638612396,82.1,116.74,116.66,10.44]
[1743638612895,82.1,116.77,116.7,0.42648471]
[1743638613094,82.1,116.77,116.69,26.0]
[1743638613493,82.1,116.81,116.72,0.14216157]
[1743638613692,82.1,116.81,116.73,10.42]
[1743638613888,82.1,116.81,116.74,0.42648471]
[1743638614279,82.1,116.86,116.77,26.0]
[1743638614474,82.1,116.86,116.78,10.86648471]
[1743638614783,218.0,116.85,116.78,10.44]
[1743638614997,218.0,116.85,116.75,334.02]
[1743638615315,82.1,116.84,116.75,334.02]
[1743638615497,236.64964886,116.83,116.69,26.0]
[1743638615699,218.0,116.82,116.7,26.28432314]
[1743638615881,218.0,116.82,116.71,0.14216157]
[1743638616083,18.64964886,116.81,116.7,26.28432314]
[1743638616287,218.0,116.82,116.71,0.14216157]
[1743638617486,218.0,116.82,116.74,26.0]
[1743638617799,82.1,116.81,116.74,26.0]
[1743638618708,218.0,116.8,116.69,26.0]
[1743638618890,0.14216157,116.77,116.65,8.3948]
[1743638619085,19.07613357,116.75,116.6,19.3508]
[1743638619281,10.42,116.74,116.64,26.0]
[1743638619485,82.1,116.73,116.61,30.0]
[1743638619700,82.1,116.72,116.61,30.0]
[1743638620005,20.0,116.7,116.61,30.0]
[1743638620182,0.14216157,116.61,116.53,0.18678108]
[1743638620384,0.42648471,116.57,116.53,0.18678108]
[1743638620602,19.07613357,116.57,116.53,0.18678108]
[1743638620799,237.07613357,116.57,116.41,333.94]
[1743638621178,135.9,116.61,116.41,333.94]
[1743638621381,135.9,116.63,116.5,0.14216157]
[1743638621580,218.0,116.64,116.51,10.82]
[1743638621799,82.1,116.63,116.52,0.28432314]
[1743638622107,135.9,116.66,116.52,0.28432314]
[1743638622108,218.0,116.66,116.59,26.0]
[1743638622402,82.1,116.65,116.53,0.5]
[1743638622603,45.63,116.6,116.42,2.07066777]
[1743638622801,0.42648471,116.57,116.39,9.1524]
[1743638623004,18.64964886,116.55,116.39,9.1524]
[1743638623203,82.1,116.54,116.39,9.1524]
[1743638623397,82.1,116.54,116.4,0.64216157]
[1743638623705,82.1,116.54,116.44,0.5]
[1743638623911,82.1,116.54,116.48,26.0]
[1743638624592,81.7525,116.54,116.48,26.0]
[1743638624790,81.7525,116.58,116.49,0.42648471]
[1743638625208,81.7525,116.58,116.53,26.0]
[1743638625511,81.7525,116.62,116.54,0.42648471]
[1743638625683,81.7525,116.62,116.55,10.92]
[1743638626811,81.7525,116.62,116.53,0.92648471]
[1743638626812,81.7525,116.61,116.54,26.0]
[1743638627120,236.30214886,116.6,116.51,10.92]
[1743638627314,228.87682314,116.59,116.45,334.12]
[1743638627513,236.44431043,116.58,116.45,345.06]
[1743638627711,81.7525,116.57,116.45,334.12]
[1743638628008,81.7525,116.57,116.49,26.0]
[1743638628217,81.7525,116.56,116.46,10.92]
[1743638628401,81.7525,116.55,116.46,10.92]
[1743638628594,81.7525,116.54,116.46,10.9]
[1743638628910,81.7525,116.53,116.45,334.12]
[1743638629405,81.7525,116.53,116.46,0.14216157]
[1743638629908,81.7525,116.56,116.46,0.42648471]
[1743638630094,81.7525,116.56,116.49,0.42648471]
[1743638630288,81.7525,116.56,116.5,10.88]
[1743638630606,0.14216157,116.52,116.36,0.5]
[1743638630814,92.7525,116.51,116.38,26.5]
[1743638631111,92.7525,116.51,116.39,0.14216157]
[1743638631112,81.7525,116.5,116.39,0.14216157]
[1743638631296,81.7525,116.5,116.36,0.14216157]
[1743638631297,81.7525,116.49,116.36,0.14216157]
[1743638631696,100.40214886,116.48,116.32,9.7253]
[1743638631909,81.7525,116.47,116.35,0.5]
[1743638632106,81.7525,116.46,116.36,0.14216157]
[1743638632309,81.7525,116.45,116.32,9.2253]
[1743638632617,81.7525,116.44,116.29,11.46]
[1743638632797,81.7525,116.43,116.3,0.5]
[1743638633001,10.96,116.42,116.3,0.14216157]
[1743638633316,81.7525,116.46,116.31,0.5]
[1743638633612,81.7525,116.46,116.35,26.14216157]
[1743638633792,81.7525,116.46,116.39,26.0]
[1743638633990,81.7525,116.45,116.39,26.0]
[1743638634391,92.7125,116.48,116.39,26.0]
[1743638634812,81.7525,116.51,116.39,26.0]
[1743638635032,81.7525,116.51,116.42,19.07613357]
[1743638635215,81.7525,116.51,116.44,0.42648471]
[1743638635532,135.9,116.53,116.44,0.42648471]
[1743638636096,135.9,116.53,116.45,10.92]
[1743638636518,81.7525,116.54,116.46,0.42648471]
[1743638636822,81.7525,116.57,116.48,26.0]
[1743638637325,18.64964886,116.56,116.45,10.92]
[1743638637529,18.64964886,116.56,116.45,26.0]
[1743638637710,218.07898471,116.55,116.45,26.0]